bitfinex-derivatives/quotes_SOLF0:USTF0_20250904
["timestamp","ask_amount","ask_price","bid_price","bid_amount"]
[1756965547565,111.84,206.66,206.65,0.03246563]
[1756965547965,1.9799706,206.7,206.65,0.03246563]
[1756965548159,7.56,206.68,206.65,0.03246563]
[1756965548464,121.28,206.67,206.65,7.80246563]
[1756965548661,7.56,206.68,206.66,4.48471174]
[1756965548865,7.56,206.68,206.65,9.78243623]
[1756965549066,121.28,206.67,206.66,4.4846771]
[1756965549266,7.56,206.68,206.66,4.48784899]
[1756965549466,7.56,206.68,206.67,4.4879405]
[1756965549666,128.82,206.68,206.67,4.4879405]
[1756965552369,7.56,206.68,206.67,4.4879405]
[1756965552675,7.56,206.68,206.67,13.9979111]
[1756965552676,121.14,206.68,206.67,13.9979111]
[1756965552879,5.37783188,206.77,206.67,6.4679111]
[1756965553076,128.58,206.76,206.7,1.9799706]
[1756965553279,62.9799706,206.78,206.71,6.4679111]
[1756965553280,7.28,206.77,206.71,6.4679111]
[1756965553576,181.07102552,206.79,206.73,1.9799706]
[1756965553781,121.28,206.78,206.74,4.4879405]
[1756965553979,5.37783188,206.81,206.75,4.4879405]
[1756965554179,5.37783188,206.81,206.73,9.5099706]
[1756965554180,121.28,206.8,206.73,9.5099706]
[1756965554378,7.28,206.79,206.74,4.47520367]
[1756965554676,7.28,206.79,206.75,4.47520367]
[1756965554875,121.28,206.8,206.74,0.03163056]
[1756965555076,330.63783188,206.83,206.75,6.45572697]
[1756965555381,128.52,206.82,206.76,6.45572697]
[1756965555574,128.52,206.82,206.77,4.47575637]
[1756965555773,128.52,206.82,206.76,1.9799706]
[1756965555979,128.52,206.82,206.77,4.47476495]
[1756965556178,128.52,206.82,206.75,1.9799706]
[1756965556179,7.28,206.82,206.75,1.9799706]
[1756965556373,121.24,206.81,206.76,4.47449019]
[1756965556581,7.28,206.8,206.74,0.03163056]
[1756965556877,121.24,206.81,206.75,4.47253111]
[1756965557081,7.28,206.8,206.76,4.47253111]
[1756965557277,7.28,206.8,206.74,2.01160116]
[1756965557483,7.28,206.8,206.75,4.47004273]
[1756965557685,121.24,206.81,206.76,4.47004273]
[1756965557887,7.28,206.8,206.74,0.03163056]
[1756965558079,121.24,206.81,206.75,4.47004273]
[1756965558279,7.28,206.8,206.76,4.47004273]
[1756965558578,7.28,206.8,206.74,0.03163056]
[1756965558779,7.28,206.8,206.75,4.46900835]
[1756965558981,121.24,206.81,206.76,4.46900835]
[1756965559181,7.28,206.8,206.74,0.03163056]
[1756965559384,121.08,206.79,206.75,4.46874918]
[1756965559685,7.28,206.82,206.76,4.46735264]
[1756965559887,121.06,206.81,206.75,9.5099706]
[1756965560179,121.06,206.81,206.76,11.99703094]
[1756965560380,121.06,206.81,206.76,7.53]
[1756965560581,7.28,206.8,206.76,7.53]
[1756965560776,121.06,206.81,206.76,7.53]
[1756965561482,7.28,206.8,206.75,1.9799706]
[1756965561787,332.54,206.83,206.77,9.5099706]
[1756965562081,7.28,206.82,206.77,1.9799706]
[1756965562283,121.02,206.81,206.79,9.5099706]
[1756965562680,121.06,206.8,206.79,1.9799706]
[1756965562887,121.06,206.81,206.79,1.9799706]
[1756965563483,121.06,206.81,206.79,9.5099706]
[1756965567188,128.34,206.81,206.79,1.9799706]
[1756965567991,121.06,206.81,206.79,9.5099706]
[1756965569087,7.28,206.84,206.79,9.5099706]
[1756965569282,7.28,206.82,206.79,9.5099706]
[1756965569487,120.78,206.83,206.78,7.56625614]
[1756965569994,120.78,206.83,206.78,0.03625614]
[1756965570488,7.28,206.82,206.78,7.56625614]
[1756965571194,7.28,206.86,206.79,10.61653628]
[1756965571396,120.7,206.85,206.79,10.61653628]
[1756965572194,127.98,206.85,206.79,10.61653628]
[1756965572695,120.74,206.84,206.79,10.61653628]
[1756965572891,128.02,206.84,206.8,7.53]
[1756965573291,120.72,206.85,206.8,7.53]
[1756965573495,7.28,206.84,206.8,7.53]
[1756965573690,120.72,206.85,206.8,7.53]
[1756965573893,7.28,206.84,206.8,7.53]
[1756965574293,120.72,206.85,206.8,7.53]
[1756965574491,7.28,206.84,206.8,7.53]
[1756965577491,7.28,206.96,206.83,7.53]
[1756965577690,7.28,206.96,206.89,3.08653628]
[1756965577691,120.54,206.95,206.89,3.08653628]
[1756965578094,7.28,206.94,206.9,0.03580614]
[1756965578494,120.54,206.95,206.9,0.03580614]
[1756965578897,7.28,206.94,206.9,0.03580614]
[1756965579692,120.54,206.95,206.9,0.03580614]
[1756965579888,7.28,206.94,206.9,0.03580614]
[1756965580095,120.7,206.93,206.9,0.03580614]
[1756965580294,7.28,206.91,206.9,0.03580614]
[1756965583101,61.0,207.03,206.9,0.03580614]
[1756965583102,7.63,206.98,206.9,0.03580614]
[1756965583305,7.63,206.96,206.9,0.03580614]
[1756965583491,7.63,206.96,206.88,7.82]
[1756965583695,3.08653628,207.0,206.91,0.03095211]
[1756965583893,128.13,206.99,206.91,0.03095211]
[1756965584298,7.63,206.99,206.91,0.03095211]
[1756965584499,7.63,206.97,206.91,0.03095211]
[1756965586897,7.63,206.95,206.91,0.03095211]
[1756965587103,7.63,206.93,206.91,0.03095211]
[1756965587303,128.11,206.92,206.91,0.03095211]
[1756965594904,7.63,206.92,206.91,0.03095211]
[1756965595113,127.85,206.92,206.91,0.03095211]
[1756965600713,127.63,206.92,206.91,0.03095211]
[1756965601112,7.63,206.92,206.91,0.03095211]
[1756965601308,7.63,206.94,206.91,7.85095211]
[1756965601514,119.98,206.93,206.91,7.85095211]
[1756965601712,61.0,206.95,206.92,7.82]
[1756965602009,7.63,206.93,206.91,0.03095211]
[1756965602215,127.63,206.92,206.91,0.03095211]
[1756965603809,128.11,206.92,206.77,7.82]
[1756965604015,7.63,206.86,206.78,4.54435316]
[1756965604214,120.2,206.85,206.79,4.54435316]
[1756965604416,7.63,206.84,206.8,4.54435316]
[1756965604610,119.98,206.83,206.77,7.82]
[1756965604814,119.98,206.83,206.72,3.08653628]
[1756965604815,7.63,206.81,206.74,7.82]
[1756965605115,119.02,206.8,206.74,7.82]
[1756965606819,7.63,206.79,206.7,7.82]
[1756965607413,7.63,206.76,206.7,7.82]
[1756965607613,120.18,206.75,206.72,0.03194458]
[1756965607821,7.63,206.74,206.72,0.03194458]
[1756965608116,123.29859749,206.75,206.72,0.03194458]
[1756965608514,127.87,206.74,206.72,0.03194458]
[1756965608710,120.22,206.73,206.72,0.03194458]
[1756965608912,127.85,206.73,206.72,0.03194458]
[1756965611722,7.63,206.73,206.72,0.03194458]
[1756965612021,0.03206121,206.75,206.72,0.03194458]
[1756965612321,31.98,206.73,206.72,0.03194458]
[1756965612627,31.98,206.73,206.72,7.47194458]
[1756965612920,31.98,206.73,206.72,0.03194458]
[1756965613725,39.81,206.73,206.72,0.03194458]
[1756965616626,76.79,206.73,206.72,0.03194458]
[1756965618522,111.81,206.73,206.72,0.03194458]
[1756965620329,7.83,206.73,206.72,0.03194458]
[1756965624627,0.03206121,206.75,206.72,0.03194458]
[1756965624830,0.03206121,206.75,206.73,7.44]
[1756965626834,7.86206121,206.75,206.72,0.03194458]
[1756965627430,7.86206121,206.75,206.72,7.47194458]
[1756965628329,7.86206121,206.75,206.72,0.03194458]
[1756965628536,7.83,206.74,206.72,0.03194458]
[1756965629643,0.03206121,206.75,206.73,7.44]
[1756965631141,0.03206121,206.75,206.72,0.03194458]
[1756965631335,7.83,206.74,206.72,0.03194458]
[1756965631536,0.03206121,206.75,206.72,7.47194458]
[1756965636042,0.03206121,206.75,206.73,7.44]
[1756965640743,0.03206121,206.75,206.73,1.97711295]
[1756965640950,0.03206121,206.75,206.74,7.44]
[1756965643847,0.03206121,206.75,206.74,7.76]
[1756965644036,0.03206121,206.75,206.74,9.73711295]
[1756965644745,0.03206121,206.75,206.74,7.76]
[1756965644949,0.03206121,206.75,206.74,9.73711295]
[1756965645743,0.03206121,206.75,206.74,10.21711295]
[1756965646544,180.87394023,206.82,206.74,10.21711295]
[1756965646545,180.87394023,206.82,206.75,7.76]
[1756965646749,180.87394023,206.82,206.79,1.97711295]
[1756965646948,180.87394023,206.82,206.81,9.73711295]
[1756965647845,119.64,206.84,206.81,9.73711295]
[1756965648943,127.34,206.84,206.81,9.73711295]
[1756965650448,127.34,206.84,206.81,7.76]
[1756965650650,127.34,206.84,206.81,9.73711295]
[1756965652849,7.7,206.83,206.79,0.03303331]
[1756965653052,7.7,206.83,206.81,1.97711295]
[1756965655851,119.64,206.84,206.79,0.03303331]
[1756965656052,7.7,206.83,206.79,0.03303331]
[1756965656548,9.67711295,206.83,206.79,0.03303331]
[1756965657051,119.64,206.84,206.79,0.03303331]
[1756965657247,9.67711295,206.83,206.79,0.03303331]
[1756965657446,7.7,206.82,206.79,0.03303331]
[1756965657650,127.1,206.81,206.79,0.03303331]
[1756965657949,7.7,206.8,206.79,0.03303331]
[1756965661051,127.0,206.8,206.79,0.03303331]
[1756965662052,7.7,206.8,206.79,0.03303331]
[1756965662253,127.0,206.8,206.79,0.03303331]
[1756965662753,128.97711295,206.8,206.79,0.03303331]
[1756965663354,9.67711295,206.8,206.79,0.03303331]
[1756965665653,107.98,206.79,206.71,9.73711295]
[1756965665853,9.67711295,206.78,206.71,9.73711295]
[1756965666052,7.7,206.78,206.71,9.73711295]
[1756965666849,0.0329872,206.77,206.71,9.73711295]
[1756965668957,0.0329872,206.77,206.71,7.76]
[1756965669156,7.7,206.74,206.67,1.97711295]
[1756965669456,7.7,206.74,206.64,4.03611433]
[1756965669457,110.96,206.74,206.7,7.76]
[1756965669655,103.26,206.74,206.7,7.76]
[1756965669849,7.7,206.72,206.7,7.76]
[1756965670047,7.7,206.72,206.67,9.73711295]
[1756965670247,0.03614474,206.73,206.68,7.76]
[1756965670456,0.03614474,206.73,206.67,1.97711295]
[1756965670659,9.67711295,206.72,206.65,1.97711295]
[1756965672656,9.67711295,206.72,206.64,9.73711295]
[1756965673060,1.97711295,206.7,206.64,9.73711295]
[1756965677562,1.97711295,206.7,206.64,7.76]
[1756965677964,7.88,206.71,206.64,7.76]
[1756965678264,9.85711295,206.71,206.64,7.76]
[1756965678464,9.85711295,206.71,206.65,1.97711295]
[1756965678665,128.97711295,206.71,206.65,1.97711295]
[1756965679867,127.0,206.71,206.64,7.76]
[1756965680066,128.97711295,206.71,206.64,7.76]
[1756965682569,127.0,206.71,206.65,9.40711295]
[1756965683059,0.03267065,206.7,206.65,9.40711295]
[1756965683261,24.61267065,206.7,206.66,7.43]
[1756965683466,7.88,206.69,206.66,7.43]
[1756965684263,0.03267065,206.7,206.66,7.43]
[1756965684463,7.91267065,206.7,206.66,7.43]
[1756965684664,7.88,206.69,206.66,7.43]
[1756965687865,7.88,206.69,206.65,1.97711295]
[1756965688073,7.88,206.69,206.63,9.40711295]
[1756965688261,7.88,206.69,206.63,7.43]
[1756965690170,0.03267065,206.7,206.64,1.97711295]
[1756965690370,126.96,206.69,206.65,7.43]
[1756965690768,126.99571731,206.69,206.65,7.43]
[1756965691371,7.88,206.68,206.65,7.43]
[1756965692273,119.11571731,206.69,206.62,7.43]
[1756965694475,0.03571731,206.69,206.62,7.43]
[1756965694766,7.88,206.68,206.62,7.43]
[1756965695874,119.11571731,206.69,206.63,0.03561422]
[1756965696174,7.88,206.68,206.63,0.03561422]
[1756965696376,119.11571731,206.69,206.63,0.03561422]
[1756965696571,7.88,206.68,206.63,0.03561422]
[1756965696972,119.11571731,206.69,206.63,0.03561422]
[1756965697479,7.88,206.68,206.63,0.03561422]
[1756965697769,119.11571731,206.69,206.63,0.03561422]
[1756965697976,7.88,206.68,206.63,0.03561422]
[1756965698276,119.11571731,206.69,206.63,0.03561422]
[1756965698772,7.88,206.68,206.63,0.03561422]
[1756965699376,119.11571731,206.69,206.63,0.03561422]
[1756965699572,126.99571731,206.69,206.63,0.03561422]
[1756965699768,0.03571731,206.69,206.64,10.52137593]
[1756965699970,0.03571731,206.69,206.64,3.09137593]
[1756965700273,7.88,206.68,206.65,7.43]
[1756965700482,0.03571731,206.69,206.64,3.09137593]
[1756965700878,0.03571731,206.69,206.65,7.43]
[1756965701077,0.03571731,206.69,206.64,3.09137593]
[1756965701281,0.03571731,206.69,206.65,7.43]
[1756965701578,7.88,206.68,206.64,10.52137593]
[1756965701877,7.88,206.68,206.64,3.09137593]
[1756965702181,7.88,206.68,206.65,7.43]
[1756965702479,7.88,206.68,206.65,7.27]
[1756965702678,7.88,206.68,206.64,3.09137593]
[1756965703182,0.03571731,206.69,206.64,3.09137593]
[1756965703381,7.50571731,206.69,206.65,7.27]
[1756965704082,7.50571731,206.69,206.63,0.03561422]
[1756965704083,7.47,206.68,206.63,0.03561422]
[1756965704281,7.47,206.68,206.64,7.27]
[1756965704682,0.03571731,206.69,206.63,7.30561422]
[1756965707681,7.50571731,206.69,206.63,7.30561422]
[1756965716684,0.03571731,206.69,206.63,7.30561422]
[1756965722689,7.47,206.68,206.63,7.30561422]
[1756965723089,0.03571731,206.69,206.63,7.30561422]
[1756965723292,0.03571731,206.69,206.63,0.03561422]
[1756965723491,7.50571731,206.69,206.63,0.03561422]
[1756965723789,7.50571731,206.69,206.64,7.27]
[1756965723997,7.50571731,206.69,206.63,0.03561422]
[1756965724295,7.50571731,206.69,206.63,7.30561422]
[1756965728294,126.56571731,206.69,206.63,7.30561422]
[1756965730200,126.56571731,206.69,206.63,0.03561422]
[1756965730405,7.47,206.67,206.63,0.03561422]
[1756965731601,12.84783188,206.67,206.63,0.03561422]
[1756965734403,7.47,206.67,206.63,0.03561422]
[1756965735201,7.79,206.64,206.63,0.03561422]
[1756965735501,126.85,206.64,206.63,0.03561422]
[1756965740507,127.33,206.64,206.63,0.03561422]
[1756965742706,8.27,206.64,206.63,0.03561422]
[1756965742908,127.33,206.64,206.63,0.03561422]
[1756965746910,130.42137593,206.64,206.63,0.03561422]
[1756965748417,130.44137593,206.64,206.63,0.03561422]
[1756965750112,135.81920781,206.64,206.55,7.91]
[1756965750314,135.33920781,206.64,206.55,7.91]
[1756965751017,3.09137593,206.61,206.55,7.91]
[1756965751219,126.85,206.6,206.49,7.91]
[1756965751414,1.98122484,206.57,206.49,9.89122484]
[1756965751614,119.06,206.56,206.5,7.91]
[1756965751915,0.03687834,206.55,206.5,7.91]
[1756965752308,0.03687834,206.55,206.51,7.91]
[1756965752513,0.03687834,206.55,206.5,1.98122484]
[1756965752916,0.03687834,206.55,206.51,7.91]
[1756965753112,0.03687834,206.55,206.5,1.98122484]
[1756965753519,0.03687834,206.55,206.51,7.91]
[1756965753718,0.03687834,206.55,206.5,1.98122484]
[1756965754319,0.03687834,206.55,206.5,7.91]
[1756965754514,0.03687834,206.55,206.49,1.98122484]
[1756965755018,0.03687834,206.55,206.48,7.91]
[1756965755213,0.03687834,206.55,206.5,7.91]
[1756965755719,0.03687834,206.55,206.49,1.98122484]
[1756965756215,28.4,206.54,206.5,7.91]
[1756965756419,28.4,206.54,206.49,1.98122484]
[1756965756815,28.4,206.54,206.5,7.91]
[1756965757318,28.4,206.54,206.49,1.98122484]
[1756965757813,28.4,206.54,206.5,7.91]
[1756965758319,28.4,206.54,206.49,1.98122484]
[1756965758517,28.4,206.54,206.5,7.91]
[1756965758913,28.4,206.54,206.49,1.98122484]
[1756965760716,28.4,206.54,206.5,7.91]
[1756965761021,28.4,206.54,206.49,1.98122484]
[1756965761221,54.95687834,206.55,206.49,1.98122484]
[1756965761417,54.95687834,206.55,206.5,7.91]
[1756965761716,54.95687834,206.55,206.47,114.37779772]
[1756965761921,54.95687834,206.55,206.51,7.73]
[1756965762322,62.94687834,206.55,206.51,7.73]
[1756965762619,62.94687834,206.55,206.5,1.98122484]
[1756965762920,62.94687834,206.55,206.51,7.73]
[1756965763121,8.02687834,206.55,206.5,1.98122484]
[1756965763519,8.02687834,206.55,206.48,7.73]
[1756965763819,8.02687834,206.55,206.5,1.98122484]
[1756965764422,8.02687834,206.55,206.51,7.73]
[1756965764825,8.02687834,206.55,206.5,1.98122484]
[1756965765223,8.02687834,206.55,206.51,7.73]
[1756965765424,8.02687834,206.55,206.5,1.98122484]
[1756965765624,8.02687834,206.55,206.51,7.73]
[1756965766017,8.02687834,206.55,206.5,1.98122484]
[1756965766229,8.02687834,206.55,206.51,7.73]
[1756965766726,8.02687834,206.55,206.5,1.98122484]
[1756965767126,0.03687834,206.55,206.51,7.73]
[1756965767328,7.99,206.54,206.51,7.73]
[1756965769033,7.99,206.54,206.5,1.98122484]
[1756965769826,7.99,206.54,206.51,7.73]
[1756965770225,0.03687834,206.55,206.51,7.73]
[1756965770430,0.03687834,206.55,206.5,1.98122484]
[1756965770734,0.03687834,206.55,206.51,7.73]
[1756965770928,8.02687834,206.55,206.5,1.98122484]
[1756965771331,8.02687834,206.55,206.51,7.73]
[1756965771728,8.02687834,206.55,206.5,1.98122484]
[1756965772325,8.02687834,206.55,206.51,7.73]
[1756965772530,8.02687834,206.55,206.5,1.98122484]
[1756965773135,8.02687834,206.55,206.51,7.73]
[1756965773537,8.02687834,206.55,206.5,1.98122484]
[1756965774436,0.03687834,206.55,206.51,7.73]
[1756965774631,0.03687834,206.55,206.5,9.71122484]
[1756965774838,7.99,206.54,206.51,7.73]
[1756965776934,7.99,206.54,206.5,1.98122484]
[1756965777139,7.99,206.54,206.5,9.71122484]
[1756965777335,0.03687834,206.55,206.5,9.71122484]
[1756965777841,2.01810318,206.55,206.5,9.71122484]
[1756965778137,7.99,206.54,206.51,7.73]
[1756965778337,2.01810318,206.55,206.51,7.73]
[1756965778537,7.99,206.54,206.51,7.73]
[1756965778734,2.01810318,206.55,206.51,7.73]
[1756965778938,7.99,206.54,206.51,7.73]
[1756965779130,2.01810318,206.55,206.51,7.73]
[1756965779335,7.99,206.54,206.51,7.73]
[1756965779533,2.01810318,206.55,206.49,1.98122484]
[1756965779534,0.03687834,206.55,206.49,1.98122484]
[1756965779734,0.03687834,206.55,206.54,7.73]
[1756965779932,7.99,206.6,206.54,7.73]
[1756965780132,91.92,206.61,206.55,1.98122484]
[1756965780338,7.99,206.58,206.55,9.71122484]
[1756965780538,7.99,206.58,206.56,7.73]
[1756965780932,7.99,206.58,206.54,1.98122484]
[1756965781236,7.99,206.58,206.55,7.73]
[1756965781639,7.99,206.58,206.54,1.98122484]
[1756965781838,0.03542855,206.59,206.54,1.98122484]
[1756965782044,0.03542855,206.59,206.52,7.73]
[1756965782045,9.97122484,206.58,206.52,9.71122484]
[1756965782245,9.97122484,206.58,206.44,119.50100076]
[1756965782246,9.97122484,206.58,206.5,1.98122484]
[1756965782545,9.97122484,206.58,206.5,9.71122484]
[1756965783043,0.03265657,206.56,206.5,9.71122484]
[1756965785351,8.02265657,206.56,206.5,9.71122484]
[1756965787353,8.02265657,206.56,206.5,7.73]
[1756965787552,0.03265657,206.56,206.51,1.98122484]
[1756965787749,7.99,206.55,206.52,7.73]
[1756965787953,7.99,206.55,206.46,4.03611433]
[1756965787954,7.99,206.55,206.49,1.98122484]
[1756965788750,0.03265657,206.56,206.5,7.73]
[1756965789053,0.03265657,206.56,206.53,1.98122484]
[1756965789453,0.03265657,206.56,206.54,7.73]
[1756965789851,8.02265657,206.56,206.51,1.98122484]
[1756965790045,7.99,206.55,206.51,1.98122484]
[1756965790253,0.03265657,206.56,206.52,7.73]
[1756965790452,8.02265657,206.56,206.51,1.98122484]
[1756965790648,8.02265657,206.56,206.52,7.73]
[1756965790851,8.02265657,206.56,206.51,1.98122484]
[1756965791057,8.02265657,206.56,206.52,7.73]
[1756965791651,8.02265657,206.56,206.51,1.98122484]
[1756965792052,8.02265657,206.56,206.52,7.98]
[1756965792255,8.02265657,206.56,206.51,1.98122484]
[1756965792859,8.02265657,206.56,206.52,7.98]
[1756965793056,7.34,206.55,206.52,7.98]
[1756965795360,0.03265657,206.56,206.52,1.98122484]
[1756965796754,0.03265657,206.56,206.53,7.98]
[1756965796950,0.03265657,206.56,206.52,1.98122484]
[1756965797560,0.03265657,206.56,206.53,7.98]
[1756965797762,7.37265657,206.56,206.53,7.98]
[1756965798157,7.37265657,206.56,206.52,1.98122484]
[1756965798352,0.03265657,206.56,206.53,7.98]
[1756965798761,0.03265657,206.56,206.52,1.98122484]
[1756965798962,0.03265657,206.56,206.53,7.98]
[1756965799858,7.34,206.55,206.53,7.98]
[1756965800861,7.34,206.55,206.49,7.98]
[1756965801759,0.03265657,206.56,206.5,1.98122484]
[1756965802061,0.03265657,206.56,206.51,7.98]
[1756965802657,0.03265657,206.56,206.5,1.98122484]
[1756965802859,7.37265657,206.56,206.5,7.98]
[1756965803264,0.03265657,206.56,206.5,7.98]
[1756965803458,0.03265657,206.56,206.5,9.96122484]
[1756965805464,9.35388141,206.56,206.5,7.98]
[1756965805766,7.37265657,206.56,206.5,7.98]
[1756965806069,9.35388141,206.56,206.5,7.98]
[1756965806257,1.98122484,206.54,206.5,7.98]
[1756965806456,7.34,206.53,206.48,7.98]
[1756965806657,7.34,206.53,206.47,1.98122484]
[1756965806857,7.34,206.53,206.48,7.98]
[1756965807062,0.03478877,206.52,206.48,7.98]
[1756965807270,7.34,206.51,206.48,7.98]
[1756965807756,0.03478877,206.52,206.47,7.98]
[1756965808357,0.03478877,206.52,206.46,1.98122484]
[1756965808562,7.37478877,206.52,206.45,9.96122484]
[1756965809969,7.37478877,206.52,206.45,7.98]
[1756965810167,7.37478877,206.52,206.41,5.42874141]
[1756965810168,7.37478877,206.52,206.46,1.98122484]
[1756965810369,0.03478877,206.52,206.46,1.98122484]
[1756965810570,0.03478877,206.52,206.47,7.98]
[1756965811266,0.03478877,206.52,206.46,1.98122484]
[1756965811570,0.03478877,206.52,206.45,7.98]
[1756965813164,0.03478877,206.52,206.48,7.98]
[1756965816371,0.03478877,206.52,206.49,7.98]
[1756965816672,12.71783188,206.62,206.51,7.98]
[1756965816874,37.19783188,206.62,206.51,7.98]
[1756965817172,31.82,206.62,206.51,7.98]
[1756965817566,31.82,206.62,206.53,3.09614689]
[1756965817774,31.82,206.62,206.54,7.98]
[1756965817970,0.03356341,206.59,206.53,3.09614689]
[1756965818369,0.03356341,206.59,206.54,7.98]
[1756965819166,0.03356341,206.59,206.53,3.09614689]
[1756965820075,0.03356341,206.59,206.54,7.98]
[1756965820276,0.03356341,206.59,206.53,3.09614689]
[1756965820671,0.03356341,206.59,206.54,7.98]
[1756965820874,0.03356341,206.59,206.53,3.09614689]
[1756965821179,0.03356341,206.59,206.53,7.98]
[1756965825770,0.03356341,206.59,206.55,7.45]
[1756965829776,0.03356341,206.59,206.57,3.09614689]
[1756965830082,7.47,206.69,206.58,7.45]
[1756965831183,7.47,206.69,206.62,7.45]
[1756965831881,12.84783188,206.72,206.62,7.45]
[1756965832081,12.84783188,206.72,206.63,7.45]
[1756965832788,12.84783188,206.72,206.65,0.03062753]
[1756965833273,7.47,206.72,206.65,0.03062753]
[1756965834282,7.47,206.72,206.65,7.48062753]
[1756965836681,7.47,206.72,206.65,0.03062753]
[1756965837385,10.56614689,206.72,206.65,0.03062753]
[1756965837881,126.27,206.72,206.65,7.48062753]
[1756965838487,7.47,206.72,206.65,7.48062753]
[1756965843887,7.47,206.72,206.65,0.03062753]
[1756965845580,3.09614689,206.68,206.65,0.03062753]
[1756965845777,7.47,206.67,206.65,0.03062753]
[1756965846287,121.85614689,206.68,206.65,0.03062753]
[1756965846589,7.47,206.67,206.65,0.03062753]
[1756965847195,7.95,206.67,206.65,0.03062753]
[1756965847387,7.95,206.67,206.56,7.45]
[1756965847593,7.47,206.64,206.56,7.45]
[1756965847795,7.47,206.64,206.5,10.54614689]
[1756965847997,118.76,206.68,206.51,7.45]
[1756965847998,7.47,206.61,206.51,7.45]
[1756965848190,25.67,206.61,206.51,7.45]
[1756965848791,0.03308329,206.58,206.51,7.45]
[1756965849197,0.03308329,206.58,206.53,3.09614689]
[1756965849392,0.03308329,206.58,206.54,7.45]
[1756965850088,0.03308329,206.58,206.53,3.09614689]
[1756965850586,0.03308329,206.58,206.54,7.45]
[1756965850791,0.03308329,206.58,206.57,7.45]
[1756965854797,0.03308329,206.58,206.57,7.93]
[1756965862804,0.03308329,206.58,206.57,7.45]
[1756965863006,61.0,206.7,206.57,7.93]
[1756965863202,7.6,206.69,206.61,7.96]
[1756965864303,7.6,206.69,206.63,0.03156326]
[1756965867606,7.6,206.69,206.63,7.99156326]
[1756965870408,7.6,206.69,206.63,11.08771015]
[1756965873101,7.6,206.69,206.63,7.99156326]
[1756965873502,69.47397877,206.74,206.66,1.97835011]
[1756965873503,7.6,206.72,206.66,1.97835011]
[1756965873700,7.6,206.72,206.68,1.97835011]
[1756965873905,7.6,206.72,206.69,7.96]
[1756965874508,9.57835011,206.74,206.68,0.03552967]
[1756965876605,1.97835011,206.72,206.68,0.03552967]
[1756965876810,126.28,206.71,206.68,0.03552967]
[1756965877012,7.6,206.69,206.68,0.03552967]
[1756965882210,7.46,206.71,206.68,0.03552967]
[1756965882612,120.63835011,206.72,206.68,0.03552967]
[1756965883410,7.46,206.71,206.68,7.46552967]
[1756965884305,61.0,206.74,206.68,7.46552967]
[1756965884508,179.66,206.74,206.68,7.46552967]
[1756965885210,118.66,206.74,206.68,7.46552967]
[1756965885411,118.66,206.74,206.69,1.97835011]
[1756965885611,118.66,206.74,206.68,0.03552967]
[1756965885812,118.66,206.74,206.7,1.97835011]
[1756965886112,118.66,206.74,206.71,7.43]
[1756965887814,118.66,206.74,206.7,1.97835011]
[1756965888007,118.66,206.74,206.71,7.43]
[1756965888606,7.46,206.78,206.72,1.97835011]
[1756965888914,126.1,206.78,206.72,1.97835011]
[1756965889117,118.64,206.78,206.73,0.03287751]
[1756965889512,7.46,206.77,206.73,0.03287751]
[1756965889712,118.64,206.78,206.73,0.03287751]
[1756965890207,7.46,206.77,206.73,0.03287751]
[1756965890408,7.46,206.77,206.73,7.46287751]
[1756965890607,118.64,206.78,206.73,7.46287751]
[1756965891007,7.46,206.77,206.73,7.46287751]
[1756965891410,118.64,206.78,206.73,7.46287751]
[1756965892217,7.46,206.77,206.73,7.46287751]
[1756965892618,118.64,206.78,206.73,7.46287751]
[1756965892820,7.46,206.78,206.74,7.43]